bitfinex/quotes_SOLUSD_20250406
["timestamp","ask_amount","ask_price","bid_price","bid_amount"]
[1743982232139,24.87300704,104.67,104.62,90.02437754]
[1743982232538,71.37472868,104.67,104.62,71.37472868]
[1743982232741,71.37472868,104.66,104.61,71.51689025]
[1743982232935,71.37472868,104.66,104.61,71.37472868]
[1743982233145,0.28432314,104.69,104.63,71.37472868]
[1743982233455,71.37472868,104.69,104.64,71.37472868]
[1743982233954,9.5502,104.71,104.64,116.02437754]
[1743982234153,71.37472868,104.69,104.64,116.02437754]
[1743982234531,71.37472868,104.7,104.64,116.02437754]
[1743982234776,0.1685531,104.72,104.64,97.65905182]
[1743982234938,71.37472868,104.69,104.64,71.37472868]
[1743982235138,71.37472868,104.69,104.65,97.37472868]
[1743982235359,71.37472868,104.7,104.65,97.37472868]
[1743982235543,10.00217624,104.72,104.63,90.16653911]
[1743982235544,71.37472868,104.68,104.63,90.16653911]
[1743982236067,0.28432314,104.71,104.64,71.37472868]
[1743982236229,9.7178531,104.72,104.65,71.51689025]
[1743982236434,71.37472868,104.71,104.66,71.37472868]
[1743982236672,71.37472868,104.7,104.65,71.37472868]
[1743982236872,71.37472868,104.69,104.64,71.51689025]
[1743982237076,71.37472868,104.67,104.62,14.02216157]
[1743982237375,19.07613357,104.69,104.61,71.37472868]
[1743982237532,71.37472868,104.66,104.61,71.37472868]
[1743982238171,0.28432314,104.7,104.63,71.37472868]
[1743982238342,71.37472868,104.66,104.61,97.37472868]
[1743982238547,71.37472868,104.65,104.61,26.0]
[1743982238877,71.37472868,104.69,104.64,71.37472868]
[1743982239175,71.37472868,104.71,104.66,71.37472868]
[1743982239976,0.1685531,104.72,104.67,18.79181043]
[1743982240178,71.37472868,104.71,104.66,71.37472868]
[1743982240336,71.37472868,104.7,104.65,71.37472868]
[1743982240537,71.37472868,104.69,104.64,71.51689025]
[1743982240952,0.28432314,104.71,104.65,71.37472868]
[1743982241148,0.1685531,104.72,104.67,0.14216157]
[1743982241375,0.1685531,104.72,104.68,97.37472868]
[1743982241777,0.1685531,104.72,104.69,71.37472868]
[1743982241942,71.54328178,104.72,104.68,26.0]
[1743982242143,9.7178531,104.72,104.64,39.20751043]
[1743982242463,71.37472868,104.7,104.65,90.16653911]
[1743982242664,0.1685531,104.72,104.66,71.37472868]
[1743982242853,0.1685531,104.72,104.69,18.64964886]
[1743982243678,0.1685531,104.72,104.69,90.02437754]
[1743982243840,71.54328178,104.72,104.67,71.37472868]
[1743982244037,0.1685531,104.72,104.67,71.37472868]
[1743982244260,71.54328178,104.72,104.69,26.0]
[1743982244463,0.1685531,104.72,104.69,26.0]
[1743982244663,0.1685531,104.72,104.69,97.37472868]
[1743982245652,0.1685531,104.72,104.67,97.37472868]
[1743982245867,0.1685531,104.72,104.67,71.37472868]
[1743982246071,0.1685531,104.72,104.68,71.37472868]
[1743982246264,0.1685531,104.72,104.7,71.37472868]
[1743982246576,0.1685531,104.72,104.69,71.37472868]
[1743982246764,0.1685531,104.72,104.69,90.16653911]
[1743982247074,0.1685531,104.72,104.7,71.37472868]
[1743982247282,0.1685531,104.72,104.71,26.0]
[1743982249191,71.40472868,104.75,104.71,26.0]
[1743982249976,0.03,104.75,104.71,26.0]
[1743982250173,71.40472868,104.75,104.71,26.0]
[1743982250655,80.95122868,104.75,104.69,71.37472868]
[1743982250858,71.37472868,104.73,104.68,71.37472868]
[1743982251090,80.92332868,104.73,104.67,90.16653911]
[1743982251271,71.37472868,104.72,104.68,26.0]
[1743982251468,80.92332868,104.73,104.68,71.37472868]
[1743982251803,71.40472868,104.75,104.7,71.37472868]
[1743982252367,0.03,104.75,104.71,71.51689025]
[1743982252791,0.03,104.75,104.71,0.14216157]
[1743982253089,71.40472868,104.75,104.68,26.28432314]
[1743982253391,71.37472868,104.73,104.68,97.37472868]
[1743982253571,71.37472868,104.72,104.68,18.79181043]
[1743982253770,71.37472868,104.72,104.66,18.79181043]
[1743982253970,0.28432314,104.74,104.67,71.37472868]
[1743982254276,71.37472868,104.73,104.68,71.37472868]
[1743982255175,80.92322868,104.73,104.68,71.37472868]
[1743982255378,71.37472868,104.72,104.67,71.37472868]
[1743982255578,71.37472868,104.73,104.68,71.37472868]
[1743982256203,80.92262868,104.74,104.69,71.37472868]
[1743982256382,80.92262868,104.74,104.68,71.37472868]
[1743982256581,9.5479,104.74,104.68,71.37472868]
[1743982256787,71.37472868,104.73,104.68,71.37472868]
[1743982256989,9.5479,104.74,104.68,71.37472868]
[1743982257171,80.92262868,104.74,104.69,71.37472868]
[1743982257520,71.37472868,104.75,104.7,71.37472868]
[1743982257721,80.92032868,104.76,104.7,71.37472868]
[1743982258000,71.37472868,104.75,104.7,0.14216157]
[1743982258298,71.37472868,104.75,104.7,18.79181043]
[1743982258502,71.37472868,104.75,104.7,71.51689025]
[1743982258678,80.92032868,104.76,104.7,71.51689025]
[1743982258876,71.37472868,104.75,104.7,71.51689025]
[1743982259485,71.37472868,104.75,104.7,0.14216157]
[1743982259688,71.37472868,104.74,104.69,44.64964886]
[1743982259990,71.37472868,104.73,104.69,26.0]
[1743982260506,71.37472868,104.72,104.67,18.64964886]
[1743982260798,0.28432314,104.74,104.66,71.37472868]
[1743982260799,71.37472868,104.71,104.66,71.37472868]
[1743982261016,71.37472868,104.73,104.68,71.37472868]
[1743982261391,71.37472868,104.7,104.67,26.0]
[1743982261600,71.37472868,104.7,104.65,90.16653911]
[1743982262004,71.37472868,104.71,104.66,71.37472868]
[1743982262610,0.28432314,104.72,104.66,71.37472868]
[1743982262911,71.37472868,104.71,104.66,71.37472868]
[1743982263296,9.5529,104.68,104.64,18.64964886]
[1743982263492,71.37472868,104.66,104.62,0.063]
[1743982263698,71.37472868,104.63,104.62,0.063]
[1743982263893,97.65905182,104.63,104.62,0.063]
[1743982264118,97.65905182,104.63,104.56,0.063]
[1743982264119,116.95086225,104.63,104.56,0.063]
[1743982264294,0.14216157,104.59,104.58,117.52759622]
[1743982264499,123.80239852,104.59,104.58,117.52759622]
[1743982264704,14.10432314,104.59,104.58,117.52759622]
[1743982264921,85.19472868,104.59,104.58,117.52759622]
[1743982265117,26.0,104.57,104.56,192.32345647]
[1743982265415,107.22195182,104.57,104.56,192.32345647]
[1743982265716,125.87160068,104.57,104.56,192.32345647]
[1743982265930,125.87160068,104.57,104.56,0.063]
[1743982266489,126.01376225,104.57,104.56,0.063]
[1743982266683,138.61568892,104.57,104.56,0.063]
[1743982266917,144.91665225,104.57,104.56,0.063]
[1743982267329,144.77449068,104.57,104.56,0.063]
[1743982267499,135.21159068,104.57,104.56,0.063]
[1743982267695,116.56194182,104.57,104.56,0.063]
[1743982268004,126.12484182,104.57,104.5,18.79181043]
[1743982268340,71.37472868,104.56,104.51,71.37472868]
[1743982268528,90.27761868,104.57,104.52,71.37472868]
[1743982268703,90.27761868,104.57,104.51,71.37472868]
[1743982268904,90.27761868,104.57,104.5,18.79181043]
[1743982268905,71.37472868,104.55,104.5,0.14216157]
[1743982269130,71.37472868,104.56,104.51,71.37472868]
[1743982269435,18.90289,104.57,104.51,71.37472868]
[1743982269735,18.90289,104.56,104.52,71.37472868]
[1743982269938,18.90289,104.56,104.54,71.37472868]
[1743982270102,18.90289,104.56,104.55,97.37472868]
[1743982270739,71.37472868,104.6,104.54,12.7648]
[1743982270947,71.37472868,104.59,104.54,12.7648]
[1743982271105,71.37472868,104.59,104.54,84.13952868]
[1743982271532,88.11185523,104.59,104.55,71.37472868]
[1743982272342,69.2307434,104.59,104.56,71.51689025]
[1743982272547,71.37472868,104.59,104.54,12.7648]
[1743982272848,71.37472868,104.57,104.52,71.37472868]
[1743982273008,71.37472868,104.54,104.49,265.32165992]
[1743982273212,0.14216157,104.57,104.49,336.6963886]
[1743982273514,71.37472868,104.54,104.49,336.6963886]
[1743982273710,9.5631,104.57,104.51,71.37472868]
[1743982274046,71.37472868,104.54,104.49,336.6963886]
[1743982274246,71.37472868,104.54,104.49,265.32165992]
[1743982274434,71.37472868,104.54,104.49,336.6963886]
[1743982274739,71.37472868,104.55,104.5,71.37472868]
[1743982274948,71.37472868,104.57,104.52,71.37472868]
[1743982275115,13.82,104.6,104.53,71.37472868]
[1743982275435,71.37472868,104.6,104.55,71.37472868]
[1743982275612,85.19472868,104.61,104.56,71.37472868]
[1743982275938,9.5591,104.62,104.56,71.37472868]
[1743982276137,80.93382868,104.62,104.57,71.37472868]
[1743982276342,80.93382868,104.62,104.56,71.51689025]
[1743982276343,71.37472868,104.61,104.56,71.51689025]
[1743982276638,12.6317,104.67,104.59,71.37472868]
[1743982276944,71.37472868,104.63,104.58,0.14216157]
[1743982277136,18.64964886,104.65,104.58,71.51689025]
[1743982277311,18.64964886,104.65,104.59,71.37472868]
[1743982277515,71.37472868,104.63,104.58,0.14216157]
[1743982277921,71.37472868,104.63,104.58,71.37472868]
[1743982278125,71.37472868,104.61,104.56,71.51689025]
[1743982278342,71.37472868,104.6,104.56,0.14216157]
[1743982278539,71.37472868,104.6,104.55,21.5425]
[1743982278842,71.37472868,104.6,104.55,79.07722868]
[1743982279028,71.37472868,104.61,104.56,71.37472868]
[1743982279227,71.37472868,104.62,104.56,71.37472868]
[1743982279530,71.37472868,104.6,104.55,79.07722868]
[1743982279730,71.37472868,104.61,104.56,71.37472868]
[1743982280052,71.37472868,104.62,104.57,71.51689025]
[1743982280221,50.3569,104.67,104.59,71.51689025]
[1743982280545,71.37472868,104.64,104.59,0.14216157]
[1743982281049,71.37472868,104.64,104.59,71.51689025]
[1743982281240,71.37472868,104.65,104.6,71.37472868]
[1743982281632,71.37472868,104.64,104.59,71.51689025]
[1743982282160,7.8999,104.69,104.62,0.14216157]
[1743982282335,71.37472868,104.66,104.61,71.51689025]
[1743982282860,18.79181043,104.68,104.61,0.14216157]
[1743982283043,66.04401043,104.69,104.61,0.14216157]
[1743982283044,71.37472868,104.65,104.61,0.14216157]
[1743982283355,42.16401043,104.69,104.62,71.37472868]
[1743982283667,80.92792868,104.68,104.63,71.37472868]
[1743982283834,71.37472868,104.68,104.63,71.51689025]
[1743982284363,71.37472868,104.69,104.63,71.51689025]
[1743982284570,19.5382,104.77,104.67,71.37472868]
[1743982284735,94.74032868,104.76,104.68,71.37472868]
[1743982284941,71.37472868,104.73,104.68,71.37472868]
[1743982285176,71.37472868,104.71,104.67,26.0]
[1743982285351,0.28432314,104.73,104.67,26.0]
[1743982285664,26.0,104.72,104.67,71.37472868]
[1743982285866,71.37472868,104.73,104.68,71.37472868]
[1743982286160,71.37472868,104.72,104.67,71.51689025]
[1743982286457,0.14216157,104.72,104.64,0.14216157]
[1743982286772,71.37472868,104.69,104.64,71.51689025]
[1743982287262,71.37472868,104.69,104.64,0.14216157]
[1743982287438,71.37472868,104.69,104.64,71.51689025]
[1743982287865,71.37472868,104.68,104.64,0.14216157]
[1743982288043,71.37472868,104.69,104.64,71.51689025]
[1743982288255,80.92482868,104.71,104.66,71.37472868]
[1743982288456,18.64964886,104.72,104.66,71.37472868]
[1743982288457,9.5497,104.72,104.66,71.37472868]
[1743982288650,9.5497,104.72,104.64,0.14216157]
[1743982288651,71.37472868,104.7,104.65,71.37472868]
[1743982288956,71.37472868,104.7,104.64,90.16653911]
[1743982289260,71.37472868,104.69,104.64,71.51689025]
[1743982289870,71.37472868,104.7,104.65,71.37472868]
[1743982290160,9.5506,104.71,104.64,71.51689025]
[1743982290368,71.37472868,104.67,104.63,7.7488]
[1743982290975,71.37472868,104.67,104.62,71.37472868]
[1743982291152,71.37472868,104.66,104.62,0.14216157]
[1743982291345,90.30870068,104.7,104.61,83.71609025]
[1743982291346,71.37472868,104.65,104.61,12.1992]
[1743982291668,71.37472868,104.62,104.57,339.85640763]
[1743982291968,71.37472868,104.6,104.57,313.25380763]
[1743982292139,71.37472868,104.59,104.55,7.9883]
[1743982292338,71.37472868,104.59,104.54,86.14853631]
[1743982292562,71.37472868,104.57,104.54,14.77380763]
[1743982292867,71.37472868,104.58,104.54,14.77380763]
[1743982293079,71.37472868,104.59,104.54,14.77380763]
[1743982293266,71.37472868,104.6,104.54,14.77380763]
[1743982293569,71.37472868,104.59,104.54,14.77380763]
[1743982293953,71.37472868,104.59,104.54,0.14216157]
[1743982294263,9.5597,104.61,104.54,0.14216157]
[1743982294467,26.0,104.64,104.57,71.51689025]
[1743982294664,71.37472868,104.61,104.56,0.14216157]
[1743982294863,71.37472868,104.62,104.58,0.14216157]
[1743982295072,71.37472868,104.63,104.58,71.37472868]
[1743982295240,71.37472868,104.64,104.59,71.37472868]
[1743982295553,71.37472868,104.65,104.6,97.37472868]
[1743982295737,71.37472868,104.64,104.6,26.0]
[1743982295940,80.93132868,104.64,104.6,26.0]
[1743982296155,71.37472868,104.63,104.55,18.933972]
[1743982296360,71.37472868,104.62,104.58,26.0]
[1743982296548,71.37472868,104.61,104.58,26.0]
[1743982296746,71.37472868,104.61,104.56,71.37472868]
[1743982296953,18.933972,104.63,104.56,71.37472868]
[1743982297154,71.37472868,104.61,104.56,71.37472868]
[1743982297349,71.37472868,104.62,104.56,71.51689025]
[1743982297767,9.5593,104.61,104.56,71.51689025]
[1743982298068,80.93342868,104.62,104.56,71.51689025]
[1743982298583,9.5529,104.68,104.6,97.51689025]
[1743982298787,71.37472868,104.67,104.62,71.37472868]
[1743982299069,9.5529,104.68,104.61,71.51689025]
[1743982299271,71.37472868,104.65,104.61,0.14216157]
[1743982299568,71.37472868,104.65,104.6,0.14216157]
[1743982299746,80.93202868,104.64,104.59,320.164]
[1743982299954,80.93202868,104.64,104.59,391.53872868]
[1743982300367,80.93202868,104.64,104.6,0.14216157]
[1743982300368,71.37472868,104.64,104.6,0.14216157]
[1743982300675,71.37472868,104.65,104.6,71.51689025]
[1743982300869,71.37472868,104.64,104.59,391.53872868]
[1743982301261,71.37472868,104.64,104.59,320.164]
[1743982301463,9.5558,104.65,104.59,391.53872868]
[1743982301656,71.37472868,104.64,104.59,391.53872868]
[1743982301856,71.37472868,104.63,104.59,320.164]
[1743982302054,71.37472868,104.62,104.59,298.38]
[1743982302372,71.37472868,104.61,104.59,298.38]
[1743982302575,71.37472868,104.61,104.56,71.51689025]
[1743982302877,9.556,104.65,104.59,71.51689025]
[1743982303065,71.37472868,104.64,104.59,71.51689025]
[1743982303462,13.8,104.66,104.6,71.37472868]
[1743982303658,28.20414886,104.67,104.6,71.37472868]
[1743982303873,71.37472868,104.65,104.6,71.37472868]
[1743982304065,71.37472868,104.64,104.59,71.51689025]
[1743982304257,71.37472868,104.62,104.57,0.14216157]
[1743982304460,71.37472868,104.61,104.55,8.2347]
[1743982304680,71.37472868,104.61,104.56,71.37472868]
[1743982304853,13.78,104.65,104.59,0.14216157]
[1743982305175,71.37472868,104.65,104.59,71.51689025]
[1743982305351,9.5553,104.66,104.59,71.51689025]
[1743982305352,71.37472868,104.64,104.59,71.51689025]
[1743982305547,71.37472868,104.65,104.59,71.37472868]
[1743982305755,71.37472868,104.65,104.6,0.14216157]
[1743982305955,80.93052868,104.65,104.6,0.14216157]
[1743982306653,71.37472868,104.65,104.6,0.14216157]
[1743982308470,71.37472868,104.62,104.56,14.77380763]
[1743982308671,71.37472868,104.62,104.57,0.14216157]
[1743982309283,71.37472868,104.63,104.57,71.51689025]
[1743982309484,28.34751043,104.65,104.57,71.51689025]
[1743982309785,71.37472868,104.62,104.57,71.51689025]
[1743982310281,71.37472868,104.64,104.59,0.14216157]
[1743982310478,9.5529,104.68,104.61,71.51689025]
[1743982310676,71.37472868,104.65,104.61,0.14216157]
[1743982310880,71.37472868,104.65,104.6,12.4318]
[1743982311183,71.37472868,104.65,104.61,0.14216157]
[1743982311781,33.4352,104.68,104.61,0.14216157]
[1743982311977,67.3662,104.74,104.64,71.51689025]
[1743982312177,71.37472868,104.7,104.65,71.37472868]
[1743982312376,71.37472868,104.72,104.67,0.14216157]
[1743982312587,71.37472868,104.7,104.66,26.0]
[1743982313675,71.37472868,104.69,104.64,71.37472868]
[1743982313981,71.37472868,104.69,104.64,71.51689025]
[1743982314378,18.933972,104.72,104.65,71.37472868]
[1743982314581,71.37472868,104.68,104.65,26.0]
[1743982314795,71.37472868,104.68,104.63,71.37472868]
[1743982314995,71.37472868,104.64,104.61,0.14216157]
[1743982315168,71.37472868,104.64,104.6,14.77380763]
[1743982315169,71.37472868,104.62,104.6,14.77380763]
[1743982315375,71.37472868,104.61,104.6,14.77380763]
[1743982315625,71.37472868,104.61,104.56,12.3642]
[1743982315806,13.78,104.62,104.56,12.3642]
[1743982315807,71.37472868,104.59,104.56,12.3642]
[1743982315968,71.37472868,104.58,104.54,7.7843]
[1743982316170,71.37472868,104.56,104.54,7.7843]
[1743982316378,71.37472868,104.56,104.52,13.3094]
[1743982316801,71.37472868,104.54,104.52,13.3094]
[1743982316972,71.37472868,104.54,104.51,14.77380763]
[1743982317184,71.37472868,104.55,104.51,0.14216157]
[1743982317704,71.37472868,104.56,104.51,71.51689025]
[1743982317905,9.84492314,104.6,104.53,0.14216157]
[1743982318086,71.37472868,104.58,104.53,90.16653911]
[1743982318281,71.37472868,104.58,104.53,71.51689025]
[1743982318488,13.76,104.6,104.53,71.51689025]
[1743982318489,71.37472868,104.59,104.53,71.51689025]
[1743982318686,9.5569,104.64,104.57,0.14216157]
[1743982318884,71.37472868,104.62,104.57,0.14216157]
[1743982319104,80.93162868,104.64,104.57,0.14216157]
[1743982319287,71.37472868,104.61,104.57,0.14216157]
[1743982320095,71.37472868,104.6,104.56,13.78]
[1743982320296,71.37472868,104.58,104.55,12.8242]
[1743982320511,9.5594,104.61,104.53,71.37472868]
[1743982320512,71.37472868,104.57,104.53,0.14216157]
[1743982320719,71.37472868,104.56,104.51,83.90492868]
[1743982320991,71.37472868,104.54,104.5,7.89646157]
[1743982321187,71.37472868,104.54,104.5,0.14216157]
[1743982321414,71.37472868,104.56,104.51,0.14216157]
[1743982321621,71.37472868,104.55,104.51,0.14216157]
[1743982321829,71.37472868,104.56,104.51,0.14216157]
[1743982321992,71.37472868,104.57,104.52,71.37472868]
[1743982322189,71.37472868,104.57,104.53,0.14216157]
[1743982322395,71.37472868,104.58,104.53,97.37472868]
[1743982322592,23.3188,104.62,104.54,71.51689025]
[1743982322798,9.5571,104.64,104.56,71.51689025]
[1743982323097,9.5556,104.65,104.58,90.16653911]
[1743982323303,71.37472868,104.63,104.58,0.14216157]
[1743982323526,9.5556,104.65,104.58,90.16653911]
[1743982323730,71.37472868,104.63,104.58,90.16653911]
[1743982323905,71.37472868,104.6,104.55,84.69592868]
[1743982324095,71.37472868,104.58,104.55,13.3212]
[1743982324295,71.37472868,104.58,104.55,0.14216157]
[1743982324507,9.5576,104.63,104.55,90.16653911]
[1743982324718,71.37472868,104.6,104.55,18.79181043]
[1743982324932,71.37472868,104.59,104.55,0.14216157]
[1743982325229,71.37472868,104.6,104.55,71.51689025]
[1743982325434,71.37472868,104.61,104.56,71.37472868]
[1743982325595,9.5576,104.63,104.55,90.16653911]
[1743982325799,9.5563,104.65,104.58,71.37472868]
[1743982326116,71.37472868,104.63,104.58,84.55579025]
[1743982326321,71.37472868,104.62,104.58,13.18106157]
[1743982326722,0.14216157,104.66,104.59,0.14216157]
[1743982326897,71.37472868,104.7,104.62,97.37472868]
[1743982327100,71.37472868,104.68,104.63,71.51689025]
[1743982327404,71.37472868,104.64,104.59,18.79181043]
[1743982327601,71.37472868,104.63,104.59,0.14216157]
[1743982327800,71.37472868,104.61,104.58,35.0758]
[1743982328005,71.37472868,104.6,104.58,13.0389]
[1743982328210,71.37472868,104.59,104.56,0.14216157]
[1743982328826,9.5578,104.63,104.56,0.14216157]
[1743982329129,71.37472868,104.6,104.56,0.14216157]
[1743982329420,71.37472868,104.59,104.54,91.42992868]
[1743982329623,71.37472868,104.58,104.54,20.0552]
[1743982329796,71.37472868,104.59,104.55,0.14216157]
[1743982330002,71.37472868,104.6,104.55,71.51689025]
[1743982330225,71.37472868,104.61,104.56,71.37472868]
[1743982330425,71.37472868,104.6,104.55,18.79181043]
[1743982330636,71.37472868,104.58,104.55,0.14216157]
[1743982331118,71.37472868,104.58,104.54,20.0552]
[1743982331320,71.37472868,104.57,104.54,20.0552]
[1743982331506,71.37472868,104.57,104.54,12.0774]
[1743982331896,80.93762868,104.57,104.54,12.0774]
[1743982332102,71.37472868,104.55,104.5,48.42488313]
[1743982332317,71.37472868,104.51,104.47,60.43189741]
[1743982332515,71.37472868,104.5,104.47,0.063]
[1743982332915,90.30870068,104.5,104.47,0.063]
[1743982334023,71.37472868,104.5,104.47,0.063]
[1743982336432,0.14216157,104.49,104.47,0.063]
[1743982336624,90.45086225,104.48,104.47,0.063]
[1743982336924,90.30870068,104.48,104.47,0.063]
[1743982337511,90.45086225,104.48,104.47,0.063]
[1743982337922,90.30870068,104.48,104.47,0.063]
[1743982338149,71.37472868,104.48,104.47,0.063]
[1743982338819,9.5678,104.52,104.47,0.063]
[1743982339020,71.37472868,104.52,104.47,0.063]
[1743982339220,71.37472868,104.5,104.47,0.063]
[1743982339421,71.37472868,104.48,104.47,0.063]
[1743982339626,18.933972,104.51,104.47,0.063]
[1743982339820,71.37472868,104.48,104.47,0.063]
[1743982342307,80.94592868,104.48,104.47,0.063]
[1743982342534,99.87990068,104.48,104.47,0.063]
[1743982342851,71.37472868,104.48,104.47,0.063]
[1743982343011,71.37472868,104.5,104.47,0.063]
[1743982343533,13.79,104.54,104.47,0.063]
[1743982343735,71.37472868,104.52,104.47,71.43772868]
[1743982343919,71.37472868,104.53,104.48,71.51689025]
[1743982344123,71.37472868,104.51,104.47,0.063]
[1743982344429,71.37472868,104.48,104.47,0.063]
[1743982344647,71.37472868,104.49,104.47,0.063]
[1743982344835,71.37472868,104.53,104.49,26.0]
[1743982345541,0.03,104.54,104.49,26.0]
[1743982345707,71.40472868,104.54,104.49,26.0]
[1743982346053,71.37472868,104.52,104.49,26.0]
[1743982346426,71.37472868,104.53,104.49,26.0]
[1743982346929,71.40472868,104.54,104.49,97.37472868]
[1743982347129,0.03,104.54,104.52,0.14216157]
[1743982347330,0.03,104.54,104.51,0.14216157]
[1743982348310,0.03,104.54,104.51,71.51689025]
[1743982349039,0.03,104.54,104.51,0.14216157]
[1743982349416,0.03,104.54,104.53,90.16653911]
[1743982349616,0.03,104.54,104.53,90.45086225]
[1743982349815,71.37472868,104.6,104.56,26.0]
[1743982350040,3.67,104.65,104.57,18.79181043]
[1743982350218,71.37472868,104.63,104.58,71.37472868]
[1743982350619,71.37472868,104.63,104.57,18.79181043]
[1743982350620,71.37472868,104.64,104.6,0.14216157]
[1743982351322,71.37472868,104.63,104.6,26.0]
[1743982351930,71.37472868,104.62,104.6,26.0]
[1743982352129,71.37472868,104.63,104.6,26.0]
[1743982352839,3.67,104.65,104.6,26.0]
[1743982353219,75.04472868,104.65,104.61,0.14216157]
[1743982353619,3.67,104.65,104.61,90.16653911]
[1743982353846,3.67,104.65,104.63,71.51689025]
[1743982354045,3.67,104.65,104.64,97.51689025]
[1743982354337,3.67,104.65,104.64,116.16653911]
[1743982354539,71.37472868,104.68,104.65,26.0]
[1743982354739,71.37472868,104.67,104.62,26.2402]
[1743982354944,71.37472868,104.66,104.62,26.2402]
[1743982355239,71.37472868,104.67,104.62,26.2402]
[1743982355540,9.5532,104.68,104.62,26.2402]
[1743982355746,71.37472868,104.67,104.62,97.61492868]
[1743982355948,71.37472868,104.67,104.63,0.14216157]
[1743982356247,71.37472868,104.7,104.65,71.51689025]
[1743982356425,71.37472868,104.68,104.65,26.0]
[1743982356621,71.37472868,104.66,104.6,7.9005]
[1743982356823,71.37472868,104.63,104.59,12.0588]
[1743982357222,71.37472868,104.64,104.59,83.43352868]
[1743982357424,71.37472868,104.64,104.6,18.79181043]
[1743982357652,71.37472868,104.65,104.6,90.16653911]
[1743982357831,9.5551,104.66,104.59,12.0588]
[1743982357832,71.37472868,104.64,104.59,83.43352868]
[1743982358141,71.37472868,104.63,104.59,12.0588]
[1743982358341,71.37472868,104.61,104.57,0.14216157]
[1743982359050,71.37472868,104.62,104.57,71.51689025]
[1743982361052,9.552,104.69,104.61,71.51689025]
[1743982361248,71.37472868,104.66,104.61,71.51689025]
[1743982361455,0.14216157,104.68,104.59,32.36964886]
[1743982361756,23.2703,104.71,104.65,71.37472868]
[1743982361922,71.37472868,104.68,104.64,26.0]
[1743982362247,71.37472868,104.66,104.62,12.7784]
[1743982362420,0.28432314,104.69,104.62,12.7784]
[1743982362624,90.02437754,104.7,104.63,0.14216157]
[1743982362820,71.37472868,104.66,104.62,12.7784]
[1743982363039,80.93032868,104.65,104.59,13.72]
[1743982363245,9.5556,104.65,104.59,85.09472868]
[1743982363546,71.37472868,104.61,104.58,13.2054]
[1743982363746,18.933972,104.64,104.58,13.2054]
[1743982363945,13.7,104.66,104.59,71.51689025]
[1743982364131,71.37472868,104.65,104.6,71.37472868]
[1743982364332,71.37472868,104.64,104.59,71.51689025]
[1743982364539,71.37472868,104.63,104.59,0.14216157]
[1743982364747,71.37472868,104.64,104.59,71.51689025]
[1743982364942,23.2547,104.66,104.6,71.37472868]
[1743982364943,13.7,104.66,104.6,71.37472868]
[1743982365254,71.37472868,104.64,104.6,0.14216157]
[1743982366051,71.37472868,104.65,104.6,71.51689025]
[1743982366352,85.07472868,104.66,104.61,71.37472868]
[1743982366570,71.37472868,104.66,104.61,71.37472868]
[1743982366854,9.5493,104.72,104.65,97.37472868]
[1743982367051,71.37472868,104.68,104.65,26.0]
[1743982367260,9.5518,104.7,104.65,26.0]
[1743982367471,18.933972,104.72,104.65,26.0]
[1743982367472,71.37472868,104.69,104.65,26.0]
[1743982367673,9.5504,104.71,104.65,97.37472868]
[1743982367968,71.37472868,104.71,104.66,26.0]
[1743982368191,28.19704886,104.74,104.67,0.14216157]
[1743982368342,0.03,104.75,104.7,71.37472868]
[1743982368661,71.37472868,104.73,104.69,0.14216157]
[1743982369031,9.5766,104.75,104.69,0.14216157]
[1743982369238,71.37472868,104.73,104.69,0.14216157]
[1743982369449,71.37472868,104.74,104.69,71.51689025]
[1743982370159,71.37472868,104.7,104.65,12.3763]
[1743982370378,71.37472868,104.7,104.65,83.75102868]
[1743982370574,13.7,104.72,104.65,12.3763]
[1743982370779,71.37472868,104.7,104.65,83.75102868]
[1743982370941,71.37472868,104.69,104.65,12.3763]
[1743982371140,71.37472868,104.7,104.65,83.75102868]
[1743982371442,23.2498,104.72,104.65,83.75102868]
[1743982371666,71.37472868,104.7,104.65,83.75102868]
[1743982372476,71.37472868,104.71,104.66,90.16653911]
[1743982372653,71.37472868,104.7,104.65,12.3763]
[1743982372853,71.37472868,104.68,104.65,12.3763]
[1743982373063,18.933972,104.71,104.65,12.3763]
[1743982373352,71.37472868,104.72,104.66,0.14216157]
[1743982373574,71.37472868,104.72,104.67,71.37472868]
[1743982373767,28.22664886,104.75,104.68,97.37472868]
[1743982373972,71.37472868,104.73,104.68,97.37472868]
[1743982374267,0.03,104.75,104.7,71.37472868]
[1743982374468,71.40472868,104.75,104.7,0.14216157]
[1743982374671,71.40472868,104.75,104.7,71.51689025]
[1743982375074,71.40472868,104.75,104.73,71.37472868]
[1743982375075,0.03,104.75,104.73,71.37472868]
[1743982375970,0.03,104.75,104.72,12.5817]